fUSD/lending_fUSD_20240317
["ID","MTS","AMOUNT","RATE_DAILY","PERIOD"]
[319404244,1710717058871,-545.3910595,0.0001863,2]
[319404245,1710717058881,-7006.64,0.0001863,2]
[319404246,1710717058890,-2654.61,0.0001863,2]
[319404247,1710717058900,-7006.64,0.0001863,2]
[319404248,1710717058910,-2654.61,0.0001863,2]
[319404249,1710717058919,-7006.64,0.0001863,2]
[319404250,1710717058930,-2654.61,0.0001863,2]
[319404251,1710717058939,-7006.85632111,0.0001863,2]
[319404252,1710717058949,-2654.61,0.0001863,2]
[319404253,1710717058958,-2654.61,0.0001863,2]
[319404254,1710717058968,-2654.61,0.0001863,2]
[319404255,1710717058980,-2654.61,0.0001863,2]
[319404256,1710717058990,-500.0,0.0001863,2]
[319404257,1710717058999,-2654.61,0.0001863,2]
[319404258,1710717059009,-500.0,0.0001863,2]
[319404259,1710717059019,-2654.61,0.0001863,2]
[319404260,1710717059029,-634.29477451,0.0001863,2]
[319404261,1710717059038,-2654.61,0.0001863,2]
[319404262,1710717059047,-2654.61,0.0001863,2]
[319404263,1710717059057,-2654.61,0.0001863,2]
[319404264,1710717059067,-2654.61,0.0001863,2]
[319404265,1710717059076,-2654.61,0.0001863,2]
[319404266,1710717059086,-2654.61,0.0001863,2]
[319404267,1710717059095,-2654.61,0.0001863,2]
[319404268,1710717059105,-2654.61,0.0001863,2]
[319404269,1710717059115,-2654.61,0.0001863,2]
[319404270,1710717059124,-2654.61,0.0001863,2]
[319404271,1710717059133,-2654.61,0.0001863,2]
[319404272,1710717059143,-2654.61023279,0.0001863,2]
[319404273,1710717059154,-500.0,0.0001863,2]
[319404274,1710717059164,-500.0,0.0001863,2]
[319404275,1710717059174,-500.0,0.0001863,2]
[319404276,1710717059184,-500.0,0.0001863,2]
[319404277,1710717059193,-500.0,0.0001863,2]
[319404278,1710717059203,-336.9,0.0001863,2]
[319404279,1710717059213,-500.0,0.0001863,2]
[319404280,1710717059224,-500.0,0.0001863,2]
[319404281,1710717059238,-500.0,0.0001863,2]
[319404282,1710717059248,-500.0,0.0001863,2]
[319404283,1710717059258,-500.0,0.0001863,2]
[319404284,1710717059267,-269.23595,0.0001863,2]
[319404285,1710717059278,-4916.85,0.0001863,2]
[319404286,1710717059287,-4916.85,0.0001863,2]
[319404287,1710717059297,-4916.85,0.0001863,2]
[319404288,1710717059308,-4916.85,0.0001863,2]
[319404289,1710717059318,-4916.85,0.0001863,2]
[319404290,1710717059327,-4916.85,0.0001863,2]
[319404291,1710717059337,-4916.85,0.0001863,2]
[319404292,1710717059347,-202.80663173,0.0001863,2]
[319404293,1710717059356,-4916.85,0.0001863,2]
[319404294,1710717059366,-4916.85,0.0001863,2]
[319404295,1710717059375,-4916.85,0.0001863,2]
[319404296,1710717059385,-4916.85,0.0001863,2]
[319404297,1710717059394,-4916.85,0.0001863,2]
[319404298,1710717059404,-4916.85,0.0001863,2]
[319404299,1710717059413,-500.0,0.0001863,2]
[319404300,1710717059423,-500.0,0.0001863,2]
[319404301,1710717059432,-4916.85,0.0001863,2]
[319404302,1710717059442,-4916.85,0.0001863,2]
[319404303,1710717059451,-4916.85,0.0001863,2]
[319404304,1710717059461,-4916.85,0.0001863,2]
[319404305,1710717059471,-4916.85,0.0001863,2]
[319404306,1710717059480,-4916.85,0.0001863,2]
[319404307,1710717059490,-4916.85,0.0001863,2]
[319404308,1710717059500,-4916.85,0.0001863,2]
[319404309,1710717059510,-2796.83,0.0001863,2]
[319404310,1710717059520,-2796.83,0.0001863,2]
[319404311,1710717059530,-4916.85,0.0001863,2]
[319404312,1710717059539,-2796.83,0.0001863,2]
[319404313,1710717059550,-4916.85,0.0001863,2]
[319404314,1710717059559,-2796.83,0.0001863,2]
[319404315,1710717059570,-4917.05650787,0.0001863,2]
[319404316,1710717059580,-2796.83,0.0001863,2]
[319404317,1710717059590,-2796.83,0.0001863,2]
[319404318,1710717059599,-2796.83,0.0001863,2]
[319404319,1710717059609,-2796.83,0.0001863,2]
[319404320,1710717059619,-2796.83,0.0001863,2]
[319404321,1710717059628,-2796.83,0.0001863,2]
[319404322,1710717059638,-2796.83,0.0001863,2]
[319404323,1710717059647,-2796.83,0.0001863,2]
[319404324,1710717059658,-2796.83,0.0001863,2]
[319404325,1710717059668,-2796.83,0.0001863,2]
[319404326,1710717059678,-2796.83,0.0001863,2]
[319404327,1710717059689,-2796.83,0.0001863,2]
[319404328,1710717059699,-500.0,0.0001863,2]
[319404329,1710717059709,-2796.83,0.0001863,2]
[319404330,1710717059719,-500.0,0.0001863,2]
[319404331,1710717059730,-500.0,0.0001863,2]
[319404332,1710717059740,-2796.83,0.0001863,2]
[319404333,1710717059751,-500.0,0.0001863,2]
[319404334,1710717059923,-2796.83,0.0001863,2]
[319404335,1710717059933,-3108.71,0.0001863,2]
[319404336,1710717059944,-2796.83,0.0001863,2]
[319404337,1710717059954,-199.41632991,0.0001863,2]
[319404338,1710717059963,-3108.71,0.0001863,2]
[319404339,1710717059974,-2796.83,0.0001863,2]
[319404340,1710717059984,-3108.71,0.0001863,2]
[319404341,1710717059996,-2796.83,0.0001863,2]
[319404342,1710717060006,-3108.71,0.0001863,2]
[319404343,1710717060015,-2796.83,0.0001863,2]
[319404344,1710717060024,-3108.71,0.0001863,2]
[319404345,1710717060033,-2797.03038376,0.0001863,2]
[319404346,1710717060043,-3108.71,0.0001863,2]
[319404347,1710717060053,-3108.71,0.0001863,2]
[319404348,1710717060062,-3108.71,0.0001863,2]
[319404349,1710717060072,-1588.37,0.0001863,2]
[319404350,1710717060081,-1897.38,0.0001863,2]
[319404351,1710717060090,-3108.71,0.0001863,2]
[319404352,1710717060099,-1588.37,0.0001863,2]
[319404353,1710717060109,-1897.38,0.0001863,2]
[319404354,1710717060118,-3108.71,0.0001863,2]
[319404355,1710717060127,-1588.37,0.0001863,2]
[319404356,1710717060136,-1897.38,0.0001863,2]
[319404357,1710717060145,-3108.71,0.0001863,2]
[319404358,1710717060154,-1588.37,0.0001863,2]
[319404359,1710717060163,-1897.38,0.0001863,2]
[319404360,1710717060173,-3108.71,0.0001863,2]
[319404361,1710717060182,-1588.37,0.0001863,2]
[319404362,1710717060192,-3108.71,0.0001863,2]
[319404363,1710717060202,-1897.38,0.0001863,2]
[319404364,1710717060213,-1588.37,0.0001863,2]
[319404365,1710717060226,-3108.71,0.0001863,2]
[319404366,1710717060235,-1897.38,0.0001863,2]
[319404367,1710717060245,-1588.37,0.0001863,2]
[319404368,1710717060254,-3108.71,0.0001863,2]
[319404369,1710717060264,-1897.38,0.0001863,2]
[319404370,1710717060273,-500.55,0.0001863,2]
[319404371,1710717060283,-1588.37,0.0001863,2]
[319404372,1710717060293,-1897.38,0.0001863,2]
[319404373,1710717060303,-3108.71,0.0001863,2]
[319404374,1710717060316,-1588.37,0.0001863,2]
[319404375,1710717060325,-1897.38,0.0001863,2]
[319404376,1710717060335,-3108.71,0.0001863,2]
[319404377,1710717060346,-1588.37,0.0001863,2]
[319404378,1710717060355,-1897.38,0.0001863,2]
[319404379,1710717060365,-3108.71,0.0001863,2]
[319404380,1710717060375,-1897.38,0.0001863,2]
[319404381,1710717060384,-1588.37,0.0001863,2]
[319404382,1710717060393,-3108.71,0.0001863,2]
[319404383,1710717060403,-1588.37,0.0001863,2]
[319404384,1710717060412,-3108.71,0.0001863,2]
[319404385,1710717060422,-1588.37,0.0001863,2]
[319404386,1710717060432,-1897.38,0.0001863,2]
[319404387,1710717060442,-3108.71,0.0001863,2]
[319404388,1710717060452,-1588.37,0.0001863,2]
[319404389,1710717060462,-1897.38,0.0001863,2]
[319404390,1710717060472,-3108.71,0.0001863,2]
[319404391,1710717060481,-1588.37,0.0001863,2]
[319404392,1710717060491,-1897.38,0.0001863,2]
[319404393,1710717060501,-3108.71,0.0001863,2]
[319404394,1710717060510,-1588.37,0.0001863,2]
[319404395,1710717060519,-1897.38,0.0001863,2]
[319404396,1710717060528,-3108.91,0.0001863,2]
[319404397,1710717060538,-1588.37,0.0001863,2]
[319404398,1710717060547,-1897.38,0.0001863,2]
[319404399,1710717060556,-1588.37,0.0001863,2]
[319404400,1710717060566,-1897.38,0.0001863,2]
[319404401,1710717060575,-1588.37,0.0001863,2]
[319404402,1710717060584,-1897.38,0.0001863,2]
[319404403,1710717060593,-1897.38,0.0001863,2]
[319404404,1710717060602,-1588.37,0.0001863,2]
[319404405,1710717060612,-1897.38,0.0001863,2]
[319404406,1710717060623,-1588.37,0.0001863,2]
[319404407,1710717060632,-1021.84,0.0001863,2]
[319404408,1710717060642,-1897.38,0.0001863,2]
[319404409,1710717060651,-1021.84,0.0001863,2]
[319404410,1710717060661,-1588.37,0.0001863,2]
[319404411,1710717060672,-1897.38,0.0001863,2]
[319404412,1710717060682,-1588.37,0.0001863,2]
[319404413,1710717060691,-1897.38,0.0001863,2]
[319404414,1710717060701,-1021.84,0.0001863,2]
[319404415,1710717060712,-1588.38354783,0.0001863,2]
[319404416,1710717060722,-1897.40689374,0.0001863,2]
[319404417,1710717060731,-470.62774417,0.0001863,2]
[319404418,1710717060741,-1021.84,0.0001863,2]
[319404419,1710717060753,-1021.84,0.0001863,2]
[319404420,1710717060764,-1021.84,0.0001863,2]
[319404421,1710717060774,-1021.84,0.0001863,2]
[319404422,1710717060783,-1021.84,0.0001863,2]
[319404423,1710717060792,-1021.84,0.0001863,2]
[319404424,1710717060802,-1021.84,0.0001863,2]
[319404425,1710717060811,-1021.84,0.0001863,2]
[319404426,1710717060823,-1021.84,0.0001863,2]
[319404427,1710717060833,-1021.84,0.0001863,2]
[319404428,1710717060844,-1021.84,0.0001863,2]
[319404429,1710717060854,-1021.84,0.0001863,2]
[319404430,1710717060863,-1021.84,0.0001863,2]
[319404431,1710717060872,-1021.84,0.0001863,2]
[319404432,1710717060882,-1021.84,0.0001863,2]
[319404433,1710717060892,-1021.84,0.0001863,2]
[319404434,1710717060902,-1021.84,0.0001863,2]
[319404435,1710717060915,-1021.84,0.0001863,2]
[319404436,1710717060924,-1021.84,0.0001863,2]
[319404437,1710717060935,-1021.84,0.0001863,2]
[319404438,1710717060944,-1021.88102448,0.0001863,2]
[319404439,1710717060953,-500.0,0.0001863,2]
[319404440,1710717060963,-209.19,0.0001863,2]
[319404441,1710717060972,-500.0,0.0001863,2]
[319404442,1710717060982,-313.27770867,0.0001863,2]
[319404443,1710717060992,-507.19,0.0001863,2]
[319404444,1710717061001,-507.19,0.0001863,2]
[319404445,1710717061010,-3083.59,0.0001863,2]
[319404446,1710717061020,-507.19,0.0001863,2]
[319404447,1710717061029,-3083.59,0.0001863,2]
[319404448,1710717061039,-507.19,0.0001863,2]
[319404449,1710717061050,-3083.59,0.0001863,2]
[319404450,1710717061059,-507.19,0.0001863,2]
[319404451,1710717061071,-3083.59,0.0001863,2]
[319404452,1710717061080,-507.19,0.0001863,2]
[319404453,1710717061090,-11298.17,0.0001863,2]
[319404454,1710717061099,-3083.59,0.0001863,2]
[319404455,1710717061109,-507.19,0.0001863,2]
[319404456,1710717061118,-11298.17,0.0001863,2]
[319404457,1710717061128,-3083.59,0.0001863,2]
[319404458,1710717061137,-507.19,0.0001863,2]
[319404459,1710717061146,-3083.59,0.0001863,2]
[319404460,1710717061156,-507.19,0.0001863,2]
[319404461,1710717061165,-3083.59,0.0001863,2]
[319404462,1710717061176,-11298.17,0.0001863,2]
[319404463,1710717061185,-3083.59,0.0001863,2]
[319404464,1710717061195,-507.19,0.0001863,2]
[319404465,1710717061205,-11298.17,0.0001863,2]
[319404466,1710717061214,-3083.59,0.0001863,2]
[319404467,1710717061225,-507.19,0.0001863,2]
[319404468,1710717061240,-11298.17,0.0001863,2]
[319404469,1710717061250,-507.19,0.0001863,2]
[319404470,1710717061259,-3083.59,0.0001863,2]
[319404471,1710717061269,-11298.17,0.0001863,2]
[319404472,1710717061279,-507.19,0.0001863,2]
[319404473,1710717061289,-3083.59,0.0001863,2]
[319404474,1710717061298,-531.08,0.0001863,2]
[319404475,1710717061308,-11298.17,0.0001863,2]
[319404476,1710717061322,-3083.59,0.0001863,2]
[319404477,1710717061332,-531.08,0.0001863,2]
[319404478,1710717061341,-507.19,0.0001863,2]
[319404479,1710717061351,-11298.17,0.0001863,2]
[319404480,1710717061361,-531.08,0.0001863,2]
[319404481,1710717061371,-11298.17,0.0001863,2]
[319404482,1710717061381,-507.19,0.0001863,2]
[319404483,1710717061390,-11181.527,0.0001863,2]
[319404484,1710717061400,-10951.172,0.0001863,2]
[319404485,1710717061410,-11199.017,0.0001863,2]
[319404486,1710717061419,-10949.824,0.0001863,2]
[319404487,1710717061428,-10985.859,0.0001863,2]
[319404488,1710717061438,-11041.987,0.0001863,2]
[319404489,1710717061449,-11049.398,0.0001863,2]
[319404490,1710717061460,-151.30766298,0.00018688,2]
[319404491,1710717061470,-168.3221185,0.00018782,2]
[319404492,1710717061482,-151.30766298,0.00018812,2]
[319404493,1710717061491,-296.71847077,0.000189,2]
[319404494,1710717061501,-23906.5281816,0.000189,2]
[319404495,1710717061510,-155.0,0.00019,2]
[319404496,1710717061520,-894.5360447,0.00019,2]
[319404497,1710717061529,-11909.48122651,0.00019,2]
[319404498,1710717061538,-1650.0,0.00019,3]
[319404499,1710717061548,-1500.0,0.00019,2]
[319404500,1710717061558,-808.0,0.00019059,2]
[319404501,1710717061570,-271.52061452,0.00019178,2]
[319404502,1710717061579,-342.69168916,0.00019178,2]
[319404503,1710717061588,-500.0,0.00019178,2]
[319404504,1710717061599,-500.0,0.00019178,2]
[319404505,1710717061609,-456.61150048,0.00019178,2]
[319404506,1710717061621,-326.55105149,0.00019178,2]
[319404507,1710717061631,-500.0,0.00019178,2]
[319404508,1710717061640,-401.78693322,0.00019178,2]
[319404509,1710717061650,-500.0,0.00019178,2]
[319404510,1710717061660,-500.0,0.00019178,2]
[319404511,1710717061673,-500.0,0.00019178,2]
[319404512,1710717061682,-646.00256254,0.00019178,2]
[319404513,1710717061692,-500.0,0.00019178,2]
[319404514,1710717061702,-500.0,0.00019178,2]
[319404515,1710717061711,-500.0,0.00019178,2]
[319404516,1710717061721,-500.0,0.00019178,2]
[319404517,1710717061731,-500.0,0.00019178,2]
[319404518,1710717061740,-500.0,0.00019178,2]
[319404519,1710717061750,-500.0,0.00019178,2]
[319404520,1710717061759,-500.0,0.00019178,2]
[319404521,1710717061769,-500.0,0.00019178,2]
[319404522,1710717061779,-500.0,0.00019178,2]
[319404523,1710717061789,-500.0,0.00019178,2]
[319404524,1710717061798,-500.0,0.00019178,2]
[319404525,1710717061807,-500.0,0.00019178,2]
[319404526,1710717061821,-268.65551318,0.00019178,2]
[319404527,1710717061831,-412.1963515,0.00019178,2]
[319404528,1710717061840,-176.65557921,0.00019178,2]
[319404529,1710717061851,-200.0,0.00019178,2]
[319404530,1710717061862,-4339.77,0.00019178,2]
[319404531,1710717061871,-2668.78,0.00019178,2]
[319404532,1710717061881,-150.0,0.00019178,2]
[319404533,1710717061890,-186.67,0.00019178,2]
[319404534,1710717061901,-161.550389,0.00019178,2]
[319404535,1710717061911,-8845.09091639,0.000192,2]
[319404536,1710717061920,-711.0,0.000192,2]
[319404537,1710717061929,-154.12575019,0.00019236,2]
[319404538,1710717061938,-10898.6,0.00019288,2]
[319404539,1710717061948,-180.0,0.00019288,2]
[319404540,1710717061957,-3820.0,0.000193,2]
[319404541,1710717061966,-1264.0,0.00019471,2]
[319404542,1710717061976,-1240.0,0.00019471,2]
[319404543,1710717061984,-278.0,0.00019471,2]
[319404544,1710717061994,-432.0,0.00019471,2]
[319404545,1710717062003,-603.0,0.00019471,2]
[319404546,1710717062012,-150.0,0.00019473,2]
[319404547,1710717062022,-800.0,0.00019473,2]
[319404548,1710717062031,-1136.0,0.00019473,2]
[319404549,1710717062042,-3000.0,0.00019473,2]
[319404550,1710717062051,-357.0,0.00019473,2]
[319404551,1710717062061,-2417.0,0.00019473,2]
[319404552,1710717062074,-150.0,0.00019473,2]
[319404553,1710717062083,-1458.0,0.00019473,2]
[319404554,1710717062093,-213.0,0.00019473,2]
[319404555,1710717062103,-1623.0,0.00019473,2]
[319404556,1710717062112,-697.6065012,0.000195,2]
[319404557,1710717062121,-1500.0,0.000195,2]
[319404558,1710717062131,-1825.91,0.00019502,2]
[319404559,1710717062142,-4762.0,0.00019502,2]
[319404560,1710717062151,-42878.0,0.00019502,2]
[319404561,1710717062161,-1044.0,0.00019502,2]
[319404562,1710717062171,-154.12575019,0.00019539,2]
[319404563,1710717062180,-1000.0,0.00019568,2]
[319404564,1710717062190,-154.12575019,0.00019624,2]
[319404565,1710717062199,-150.0,0.00019683,2]
[319404566,1710717062209,-1548.97,0.00019726,2]
[319404567,1710717062219,-4526.45392259,0.000199,3]
[319404568,1710717062232,-9377.65607027,0.000199,2]
[319404569,1710717062241,-151.30766298,0.00019902,2]
[319404570,1710717062299,-150.0,0.00019919,2]
[319404571,1710717062309,-150.0,0.00019919,2]
[319404572,1710717062321,-150.0,0.00019939,2]
[319404573,1710717062331,-150.0,0.00019939,2]
[319404574,1710717062340,-150.0,0.00019939,2]
[319404575,1710717062350,-1378.0,0.00019939,2]
[319404576,1710717062359,-959.0,0.00019939,2]
[319404577,1710717062368,-2560.0,0.00019939,2]
[319404578,1710717062377,-536.0,0.00019939,2]
[319404579,1710717062386,-1227.0,0.00019939,2]
[319404580,1710717062395,-457.0,0.00019939,2]
[319404581,1710717062405,-1548.97,0.00019974,2]
[319404582,1710717062413,-405.65571563,0.0001998,2]
[319404583,1710717062422,-1400.0,0.00019982,2]
[319404584,1710717062432,-1754.23693487,0.0002,2]
[319404585,1710717062442,-3039.91368398,0.0002,2]
[319404586,1710717062451,-172.09730562,0.0002,2]
[319404587,1710717062461,-155.0,0.0002,2]
[319404588,1710717062470,-157.38123546,0.0002,2]
[319404589,1710717062479,-286.63395729,0.0002,2]
[319404590,1710717062488,-1848.43047613,0.0002,2]
[319404591,1710717062497,-2500.0,0.0002,2]
[319404592,1710717062506,-18774.23774994,0.0002,2]
[319404593,1710717062516,-2613.10402099,0.0002,2]
[319404594,1710717062525,-155.0,0.0002,2]
[319404595,1710717062534,-33417.76203518,0.0002,2]
[319404596,1710717062543,-155.0,0.0002,2]
[319404597,1710717062552,-1246.7636923,0.0002,2]
[319404598,1710717062561,-27502.23921407,0.0002,2]
[319404599,1710717062572,-504.34986841,0.0002,2]
[319404600,1710717062582,-150.0,0.0002,2]
[319404601,1710717062591,-1500.0,0.0002,2]
[319404602,1710717062601,-400.0,0.0002,2]
[319404603,1710717062610,-200.0,0.00020185,2]
[319404604,1710717062619,-800.0,0.00020185,2]
[319404605,1710717062628,-200.0,0.00020185,2]
[319404606,1710717062637,-500.0,0.00020185,2]
[319404607,1710717062646,-200.0,0.00020185,2]
[319404608,1710717062655,-150.0,0.00020187,2]
[319404609,1710717062664,-151.16603038,0.0002019,2]
[319404610,1710717062674,-1548.97,0.00020222,2]
[319404611,1710717062683,-151.30766298,0.00020232,2]
[319404612,1710717062692,-154.12575019,0.00020459,2]
[319404613,1710717062701,-1548.97,0.0002047,2]
[319404614,1710717062710,-154.12575019,0.00020478,2]
[319404615,1710717062720,-151.30766298,0.00020574,2]
[319404616,1710717062729,-154.06087022,0.00020603,2]
[319404617,1710717062739,-1105.40085894,0.00020683,2]
[319404618,1710717062748,-1105.40085884,0.00020683,2]
[319404619,1710717062761,-1105.40085884,0.00020683,2]
[319404620,1710717062770,-150.0,0.00020692,2]
[319404621,1710717062780,-1548.97,0.00020718,2]
[319404622,1710717062789,-512.97,0.00020743,2]
[319404623,1710717062798,-150.80584846,0.00020885,2]
[319404624,1710717062807,-1548.97,0.00020966,2]
[319404625,1710717062818,-154.12575019,0.00020984,2]
[319404626,1710717062827,-1831.43335598,0.00021,2]
[319404627,1710717062837,-500.0,0.00021,11]
[319404628,1710717062846,-1106.14425653,0.00021,2]
[319404629,1710717062856,-173000.0,0.00021,3]
[319404630,1710717062865,-1700.0,0.00021,3]
[319404631,1710717062874,-155.33791433,0.00021062,2]
[319404632,1710717062883,-47630.51,0.00021096,2]
[319404633,1710717062892,-151.12768755,0.00021141,2]
[319404634,1710717062902,-150.0,0.00021197,2]
[319404635,1710717062912,-154.06087022,0.00021209,2]
[319404636,1710717062921,-1548.97,0.00021214,2]
[319404637,1710717062930,-156.51853804,0.00021236,2]
[319404638,1710717062939,-150.0,0.00021395,2]
[319404639,1710717062949,-522.518147,0.000214,2]
[319404640,1710717062958,-1548.97,0.00021462,2]
[319404641,1710717062967,-982.0,0.00021507,2]
[319404642,1710717062978,-4493.0,0.00021507,2]
[319404643,1710717062988,-1037.0,0.00021507,2]
[319404644,1710717062998,-332.0,0.00021507,2]
[319404645,1710717063009,-150.0,0.00021508,2]
[319404646,1710717063019,-154.12575019,0.00021526,2]
[319404647,1710717063030,-150.0,0.00021633,2]
[319404648,1710717063040,-150.0,0.00021683,2]
[319404649,1710717063050,-188.679999,0.00021683,2]
[319404650,1710717063059,-47598.98777682,0.00021683,120]
[319404651,1710717063071,-1670.72,0.00021683,90]
[319404652,1710717063081,-18873.48101209,0.00021683,3]
[319404653,1710717063093,-3820.09338786,0.00021683,3]
[319404654,1710717063104,-1286.715723,0.00021683,2]
[319404655,1710717063115,-150.0,0.00021702,2]
[319404656,1710717063124,-150.0,0.00021706,2]
[319404657,1710717063134,-150.0,0.00021709,2]
[319404658,1710717063145,-982.0,0.00021729,2]
[319404659,1710717063153,-4493.0,0.00021729,2]
[319404660,1710717063164,-1037.0,0.00021729,2]
[319404661,1710717063173,-332.0,0.00021729,2]
[319404662,1710717063183,-1000.0,0.000219,2]
[319404663,1710717063192,-2000.0,0.000219,2]
[319404664,1710717063202,-500.0,0.000219,2]
[319404665,1710717063210,-1200.0,0.000219,2]
[319404666,1710717063221,-10000.0,0.000219,2]
[319404667,1710717063231,-480.08669759,0.000219,2]
[319404668,1710717063242,-2000.0,0.000219,2]
[319404669,1710717063251,-200.0,0.000219,2]
[319404670,1710717063260,-10000.0,0.000219,2]
[319404671,1710717063270,-2000.0,0.000219,2]
[319404672,1710717063281,-1559.25654413,0.000219,2]
[319404673,1710717063290,-588.0,0.00021917,2]
[319404674,1710717063301,-588.0,0.00021917,2]
[319404675,1710717063311,-588.0,0.00021917,2]
[319404676,1710717063322,-588.0,0.00021917,2]
[319404677,1710717063331,-161.55458136,0.00021917,2]
[319404678,1710717063341,-250.0,0.00021918,2]
[319404679,1710717063350,-2540.0,0.00021918,10]
[319404680,1710717063359,-11900.0,0.00021918,2]
[319404681,1710717063369,-796.02,0.00021918,2]
[319404682,1710717063377,-151.0,0.00021918,2]
[319404683,1710717063387,-155.0,0.00021918,2]
[319404684,1710717063396,-150.0,0.00021923,2]
[319404685,1710717063405,-500.0,0.0002195,2]
[319404686,1710717063414,-500.0,0.0002195,2]
[319404687,1710717063424,-500.0,0.0002195,2]
[319404688,1710717063433,-500.0,0.0002195,2]
[319404689,1710717063443,-500.0,0.0002195,2]
[319404690,1710717063452,-500.0,0.0002195,2]
[319404691,1710717063461,-500.0,0.0002195,2]
[319404692,1710717063470,-500.0,0.0002195,2]
[319404693,1710717063479,-500.0,0.0002195,2]
[319404694,1710717063488,-500.0,0.0002195,2]
[319404695,1710717063498,-500.0,0.0002195,2]
[319404696,1710717063507,-500.0,0.0002195,2]
[319404697,1710717063516,-500.0,0.0002195,2]
[319404698,1710717063525,-500.0,0.0002195,2]
[319404699,1710717063534,-500.0,0.0002195,2]
[319404700,1710717063544,-500.0,0.0002195,2]
[319404701,1710717063553,-500.0,0.0002195,2]
[319404702,1710717063562,-500.0,0.0002195,2]
[319404703,1710717063572,-500.0,0.0002195,2]
[319404704,1710717063581,-500.0,0.0002195,2]
[319404705,1710717063590,-500.0,0.0002195,2]
[319404706,1710717063600,-500.0,0.0002195,2]
[319404707,1710717063610,-500.0,0.0002195,2]
[319404708,1710717063619,-500.0,0.0002195,2]
[319404709,1710717063628,-500.0,0.0002195,2]
[319404710,1710717063638,-500.0,0.0002195,2]
[319404711,1710717063647,-500.0,0.0002195,2]
[319404712,1710717063658,-500.0,0.0002195,2]
[319404713,1710717063667,-500.0,0.0002195,2]
[319404714,1710717063676,-500.0,0.0002195,2]
[319404715,1710717063685,-500.0,0.0002195,2]
[319404716,1710717063694,-500.0,0.0002195,2]
[319404717,1710717063704,-703.0,0.0002195,2]
[319404718,1710717063713,-982.0,0.0002195,2]
[319404719,1710717063722,-4493.0,0.0002195,2]
[319404720,1710717063731,-1037.0,0.0002195,2]
[319404721,1710717063741,-332.0,0.0002195,2]
[319404722,1710717063751,-400.0,0.0002197,2]
[319404723,1710717063761,-400.0,0.0002197,2]
[319404724,1710717063770,-400.0,0.0002197,2]
[319404725,1710717063779,-233.63008339,0.00022,2]
[319404726,1710717063789,-500.0,0.00022,2]
[319404727,1710717063798,-500.0,0.00022,2]
[319404728,1710717063807,-500.0,0.00022,2]
[319404729,1710717063818,-500.0,0.00022,2]
[319404730,1710717063828,-500.0,0.00022,2]
[319404731,1710717063837,-1795.92619245,0.00022,2]
[319404732,1710717063847,-155.0,0.00022,2]
[319404733,1710717063857,-155.0,0.00022,2]
[319404734,1710717063866,-1012.34,0.00022,2]
[319404735,1710717063875,-150.0,0.00022149,2]
[319404736,1710717063884,-150.0,0.00022156,2]
[319404737,1710717063893,-982.0,0.00022172,2]
[319404738,1710717063902,-719.85632833,0.00022172,2]
[319404739,1710717063912,-4493.0,0.00022172,2]
[319404740,1710717063921,-1037.0,0.00022172,2]
[319404741,1710717063930,-332.0,0.00022172,2]
[319404742,1710717063940,-150.0,0.00022206,2]
[319404743,1710717063949,-150.0,0.00022218,2]